[Event "*** Titled Tuesday Blitz"]
[Site "Chess.com"]
[Date "2020.05.19"]
[Round "4"]
[White "Hippotaner"]
[Black "tgpgoat"]
[Result "1-0"]
[WhiteElo "2313"]
[BlackElo "2045"]
[TimeControl "180+1"]
[EndTime "12:41:49 PDT"]
[Termination "Hippotaner won by checkmate"]

1. c4 {[%clk 0:03:00.9]} 1... e5 {[%clk 0:02:59.9]} 2. Nc3 {[%clk 0:02:53.5]}
2... Nf6 {[%clk 0:02:59.6]} 3. g3 {[%clk 0:02:53.8]} 3... d5 {[%clk 0:02:58.5]}
4. cxd5 {[%clk 0:02:53.7]} 4... Nxd5 {[%clk 0:02:59.4]} 5. Bg2 {[%clk
0:02:53.3]} 5... Be6 {[%clk 0:02:59]} 6. d3 {[%clk 0:02:47]} 6... Nc6 {[%clk
0:02:44.7]} 7. Nf3 {[%clk 0:02:46.6]} 7... f6 {[%clk 0:02:44.1]} 8. O-O {[%clk
0:02:46.6]} 8... Be7 {[%clk 0:02:43]} 9. a3 {[%clk 0:02:47]} 9... O-O {[%clk
0:02:42.6]} 10. Ne4 {[%clk 0:02:21.8]} 10... Kh8 {[%clk 0:02:40.3]} 11. b4
{[%clk 0:02:19.8]} 11... Nb6 {[%clk 0:02:36.5]} 12. Bb2 {[%clk 0:02:18.1]} 12...
a5 {[%clk 0:02:35.5]} 13. b5 {[%clk 0:02:17.9]} 13... Na7 {[%clk 0:02:35.6]} 14.
a4 {[%clk 0:02:16.6]} 14... Nd5 {[%clk 0:02:33.8]} 15. Rc1 {[%clk 0:02:13.4]}
15... b6 {[%clk 0:02:33.3]} 16. Nfd2 {[%clk 0:02:12.7]} 16... Nc8 {[%clk
0:02:32.6]} 17. Nc4 {[%clk 0:02:12.8]} 17... Rb8 {[%clk 0:02:32.1]} 18. e3
{[%clk 0:02:04.9]} 18... Nb4 {[%clk 0:02:28.8]} 19. d4 {[%clk 0:01:59.7]} 19...
exd4 {[%clk 0:02:28.5]} 20. Qxd4 {[%clk 0:01:56.9]} 20... Qxd4 {[%clk
0:02:27.8]} 21. Bxd4 {[%clk 0:01:45.7]} 21... Rd8 {[%clk 0:02:14.7]} 22. Ncd2
{[%clk 0:01:43.4]} 22... Rd7 {[%clk 0:02:06.4]} 23. f4 {[%clk 0:01:31.4]} 23...
Nd6 {[%clk 0:02:05.3]} 24. Nxd6 {[%clk 0:01:27.9]} 24... Bxd6 {[%clk 0:02:06.2]}
25. f5 {[%clk 0:01:27.2]} 25... Bf7 {[%clk 0:02:04.1]} 26. Ne4 {[%clk
0:01:23.8]} 26... Bf8 {[%clk 0:01:55.4]} 27. g4 {[%clk 0:01:05.5]} 27... Re8
{[%clk 0:01:53.9]} 28. g5 {[%clk 0:01:04.8]} 28... Bd5 {[%clk 0:01:49.9]} 29.
Ng3 {[%clk 0:00:34.5]} 29... Bxg2 {[%clk 0:01:47.2]} 30. Kxg2 {[%clk 0:00:35.4]}
30... fxg5 {[%clk 0:01:47.7]} 31. f6 {[%clk 0:00:35.2]} 31... gxf6 {[%clk
0:01:45.8]} 32. Nh5 {[%clk 0:00:32.7]} 32... Bg7 {[%clk 0:01:23.3]} 33. Nxg7
{[%clk 0:00:19.7]} 33... Kxg7 {[%clk 0:01:20.6]} 34. Bxf6+ {[%clk 0:00:20.2]}
34... Kg6 {[%clk 0:01:20.6]} 35. Bd4 {[%clk 0:00:21.1]} 35... h6 {[%clk
0:01:18.5]} 36. Rf6+ {[%clk 0:00:21.1]} 36... Kh7 {[%clk 0:01:18.1]} 37. Rcf1
{[%clk 0:00:22]} 37... Ree7 {[%clk 0:01:11.5]} 38. Rf8 {[%clk 0:00:22.1]} 38...
Kg6 {[%clk 0:01:08.2]} 39. R1f6+ {[%clk 0:00:20.9]} 39... Kh5 {[%clk 0:01:08.1]}
40. Rh8 {[%clk 0:00:21]} 40... Rh7 {[%clk 0:01:05.1]} 41. Rhf8 {[%clk
0:00:21.2]} 41... Nd5 {[%clk 0:01:01.7]} 42. Rf3 {[%clk 0:00:20.5]} 42... Rhe7
{[%clk 0:00:47.7]} 43. Rg8 {[%clk 0:00:19.3]} 43... Re6 {[%clk 0:00:25.6]} 44.
Rh3+ {[%clk 0:00:17.2]} 44... Kg4 {[%clk 0:00:25.3]} 45. Rg3+ {[%clk 0:00:18.1]}
45... Kh5 {[%clk 0:00:25.3]} 46. Rh3+ {[%clk 0:00:18.4]} 46... Kg4 {[%clk
0:00:25.4]} 47. Rf8 {[%clk 0:00:18.6]} 47... Nf4+ {[%clk 0:00:16.3]} 48. exf4
{[%clk 0:00:15.7]} 48... Rxd4 {[%clk 0:00:16.3]} 49. Rg3+ {[%clk 0:00:16.6]}
49... Kh5 {[%clk 0:00:15.9]} 50. f5 {[%clk 0:00:16.8]} 50... Ree4 {[%clk
0:00:11.9]} 51. f6 {[%clk 0:00:16.5]} 51... Rf4 {[%clk 0:00:12]} 52. f7 {[%clk
0:00:16.2]} 52... Kg6 {[%clk 0:00:12.2]} 53. Rc8 {[%clk 0:00:14.4]} 53... Rxf7
{[%clk 0:00:11.9]} 54. Rf3 {[%clk 0:00:14.5]} 54... Rd2+ {[%clk 0:00:09]} 55.
Kg3 {[%clk 0:00:14.6]} 55... Rxf3+ {[%clk 0:00:08.4]} 56. Kxf3 {[%clk
0:00:15.5]} 56... Rd7 {[%clk 0:00:06.7]} 57. Ke4 {[%clk 0:00:15.4]} 57... h5
{[%clk 0:00:05]} 58. Rg8+ {[%clk 0:00:15.5]} 58... Rg7 {[%clk 0:00:04.4]} 59.
Re8 {[%clk 0:00:11.4]} 59... h4 {[%clk 0:00:04.4]} 60. Re6+ {[%clk 0:00:11.4]}
60... Kh5 {[%clk 0:00:04.6]} 61. Rf6 {[%clk 0:00:10.5]} 61... h3 {[%clk
0:00:04.7]} 62. Kf5 {[%clk 0:00:09.7]} 62... Kh4 {[%clk 0:00:04.1]} 63. Rh6#
{[%clk 0:00:09.2]} 1-0

[Event "*** Titled Tuesday Blitz"]
[Site "Chess.com"]
[Date "2020.05.19"]
[Round "4"]
[White "Radzio1987"]
[Black "dretch"]
[Result "1-0"]
[WhiteElo "2906"]
[BlackElo "2711"]
[TimeControl "180+1"]
[EndTime "12:41:54 PDT"]
[Termination "Radzio1987 won on time"]

1. c4 {[%clk 0:03:00.9]} 1... c6 {[%clk 0:02:58.2]} 2. Nc3 {[%clk 0:03:00]} 2...
d5 {[%clk 0:02:58.5]} 3. d4 {[%clk 0:03:00.3]} 3... Nf6 {[%clk 0:02:56.4]} 4. e3
{[%clk 0:02:59.6]} 4... Nbd7 {[%clk 0:02:49.7]} 5. Nf3 {[%clk 0:02:58.6]} 5...
e6 {[%clk 0:02:49.9]} 6. Qc2 {[%clk 0:02:58.4]} 6... b6 {[%clk 0:02:48.8]} 7.
cxd5 {[%clk 0:02:54.1]} 7... exd5 {[%clk 0:02:44.9]} 8. Bd3 {[%clk 0:02:53.2]}
8... Bb7 {[%clk 0:02:36]} 9. O-O {[%clk 0:02:52.5]} 9... Be7 {[%clk 0:02:33.5]}
10. b3 {[%clk 0:02:51.4]} 10... O-O {[%clk 0:02:33.1]} 11. Bb2 {[%clk
0:02:51.7]} 11... Rc8 {[%clk 0:02:32.6]} 12. Ne5 {[%clk 0:02:49.3]} 12... c5
{[%clk 0:02:31.9]} 13. Nxd7 {[%clk 0:02:49.2]} 13... Nxd7 {[%clk 0:02:26.1]} 14.
Bxh7+ {[%clk 0:02:49.1]} 14... Kh8 {[%clk 0:02:26.2]} 15. Bf5 {[%clk 0:02:42.8]}
15... cxd4 {[%clk 0:02:25.6]} 16. Qd1 {[%clk 0:02:23]} 16... Kg8 {[%clk
0:01:56.9]} 17. Qxd4 {[%clk 0:02:19.8]} 17... Bf6 {[%clk 0:01:56]} 18. Qd2
{[%clk 0:02:19.1]} 18... Re8 {[%clk 0:01:49.3]} 19. Rad1 {[%clk 0:02:18]} 19...
Re5 {[%clk 0:01:45.9]} 20. Bh3 {[%clk 0:02:17.8]} 20... Rh5 {[%clk 0:01:45.4]}
21. Ne2 {[%clk 0:01:42.8]} 21... Rxh3 {[%clk 0:00:33.8]} 22. gxh3 {[%clk
0:01:42.5]} 22... Ba6 {[%clk 0:00:27.4]} 23. Rfe1 {[%clk 0:01:05.1]} 23... Bxb2
{[%clk 0:00:13.7]} 24. Qxb2 {[%clk 0:01:06]} 24... Qg5+ {[%clk 0:00:13.8]} 25.
Ng3 {[%clk 0:01:00.8]} 25... Re8 {[%clk 0:00:07.6]} 26. Qd4 {[%clk 0:00:51.6]}
26... Ne5 {[%clk 0:00:06.2]} 27. Kg2 {[%clk 0:00:51.8]} 27... Qg6 {[%clk
0:00:04.6]} 28. h4 {[%clk 0:00:42]} 28... Nd3 {[%clk 0:00:03.7]} 29. Rxd3 {[%clk
0:00:38.9]} 29... Bxd3 {[%clk 0:00:03.1]} 30. h5 {[%clk 0:00:36.8]} 30... Qh7
{[%clk 0:00:03.1]} 31. Rc1 {[%clk 0:00:28.2]} 31... Be4+ {[%clk 0:00:02.7]} 32.
f3 {[%clk 0:00:28.5]} 32... Bf5 {[%clk 0:00:03.2]} 33. Rc7 {[%clk 0:00:28.2]}
33... Be6 {[%clk 0:00:03.3]} 34. Rc1 {[%clk 0:00:19.8]} 34... Qh6 {[%clk
0:00:03]} 35. Qf4 {[%clk 0:00:19.7]} 35... Qh7 {[%clk 0:00:03]} 36. Qg5 {[%clk
0:00:20.1]} 36... Kh8 {[%clk 0:00:02.8]} 37. Rf1 {[%clk 0:00:19.7]} 37... f6
{[%clk 0:00:03.1]} 38. Qg6 {[%clk 0:00:19.3]} 38... Rc8 {[%clk 0:00:02.9]} 39.
Qxh7+ {[%clk 0:00:19.1]} 39... Kxh7 {[%clk 0:00:03.8]} 40. Rf2 {[%clk
0:00:19.7]} 40... Rc3 {[%clk 0:00:03.9]} 41. Re2 {[%clk 0:00:20]} 41... Rd3
{[%clk 0:00:03.8]} 42. Kf2 {[%clk 0:00:20.1]} 42... Bf7 {[%clk 0:00:04.1]} 43.
Rc2 {[%clk 0:00:19.2]} 43... Rd1 {[%clk 0:00:03.4]} 44. Ke2 {[%clk 0:00:17.4]}
44... Ra1 {[%clk 0:00:03.1]} 45. Rd2 {[%clk 0:00:17.1]} 45... Be6 {[%clk
0:00:03.4]} 46. a4 {[%clk 0:00:14.7]} 46... Kh6 {[%clk 0:00:03.6]} 47. Rc2
{[%clk 0:00:13.6]} 47... Rb1 {[%clk 0:00:03.8]} 48. Rc3 {[%clk 0:00:13.9]} 48...
d4 {[%clk 0:00:03.4]} 49. exd4 {[%clk 0:00:14.1]} 49... Bxb3 {[%clk 0:00:04.2]}
50. Rc7 {[%clk 0:00:13.6]} 50... Rb2+ {[%clk 0:00:04]} 51. Ke3 {[%clk
0:00:13.3]} 51... Rxh2 {[%clk 0:00:04.9]} 52. Kf4 {[%clk 0:00:13.5]} 52... Kh7
{[%clk 0:00:04]} 53. Nf5 {[%clk 0:00:13.1]} 53... Rxh5 {[%clk 0:00:03.9]} 54.
Rxg7+ {[%clk 0:00:13.3]} 54... Kh8 {[%clk 0:00:04.4]} 55. Rxa7 {[%clk 0:00:14]}
55... Bc2 {[%clk 0:00:04.3]} 56. Ng3 {[%clk 0:00:13.7]} 56... Rh4+ {[%clk
0:00:04.6]} 57. Ke3 {[%clk 0:00:13.9]} 57... Rh3 {[%clk 0:00:05.1]} 58. Ne2
{[%clk 0:00:13.4]} 58... Bd1 {[%clk 0:00:05]} 59. d5 {[%clk 0:00:13.4]} 59...
Bxe2 {[%clk 0:00:02.5]} 60. Kxe2 {[%clk 0:00:14.3]} 60... Rh5 {[%clk 0:00:02.8]}
61. Rd7 {[%clk 0:00:14.1]} 61... Re5+ {[%clk 0:00:02.7]} 62. Kd3 {[%clk
0:00:14.4]} 62... Kg8 {[%clk 0:00:03.6]} 63. Kd4 {[%clk 0:00:14.5]} 63... Kf8
{[%clk 0:00:04]} 64. Rb7 {[%clk 0:00:14.6]} 64... Rf5 {[%clk 0:00:03.7]} 65.
Rxb6 {[%clk 0:00:14.7]} 65... Rxf3 {[%clk 0:00:03.2]} 66. a5 {[%clk 0:00:14.4]}
66... Ke7 {[%clk 0:00:02.5]} 67. Re6+ {[%clk 0:00:13.4]} 67... Kd7 {[%clk
0:00:02.5]} 68. a6 {[%clk 0:00:13.2]} 68... f5 {[%clk 0:00:02]} 69. Ke5 {[%clk
0:00:13.5]} 1-0

[Event "*** Titled Tuesday Blitz"]
[Site "Chess.com"]
[Date "2020.05.19"]
[Round "4"]
[White "albano87"]
[Black "fodorpoti"]
[Result "1/2-1/2"]
[WhiteElo "2349"]
[BlackElo "2762"]
[TimeControl "180+1"]
[EndTime "12:41:54 PDT"]
[Termination "Game drawn by stalemate"]

1. d4 {[%clk 0:03:00.9]} 1... d5 {[%clk 0:02:59.2]} 2. Nf3 {[%clk 0:03:00.5]}
2... Nf6 {[%clk 0:02:58.3]} 3. g3 {[%clk 0:03:00.3]} 3... c6 {[%clk 0:02:58]} 4.
Bg2 {[%clk 0:02:59.9]} 4... Bf5 {[%clk 0:02:58.7]} 5. O-O {[%clk 0:02:58.3]}
5... h6 {[%clk 0:02:57.6]} 6. c4 {[%clk 0:02:58.4]} 6... e6 {[%clk 0:02:57.9]}
7. Nc3 {[%clk 0:02:58.8]} 7... Nbd7 {[%clk 0:02:58.1]} 8. Ne5 {[%clk 0:02:58.4]}
8... Be7 {[%clk 0:02:54.4]} 9. Qb3 {[%clk 0:02:52.6]} 9... Qb6 {[%clk 0:02:54]}
10. Nxd7 {[%clk 0:02:52.4]} 10... Nxd7 {[%clk 0:02:48.7]} 11. e4 {[%clk
0:02:52.2]} 11... dxe4 {[%clk 0:02:46.7]} 12. Nxe4 {[%clk 0:02:53.1]} 12... O-O
{[%clk 0:02:32.6]} 13. Be3 {[%clk 0:02:51.9]} 13... Qxb3 {[%clk 0:02:30.1]} 14.
axb3 {[%clk 0:02:51]} 14... a6 {[%clk 0:02:29.9]} 15. Rac1 {[%clk 0:02:42]}
15... Rfd8 {[%clk 0:02:29.6]} 16. Rfd1 {[%clk 0:02:34.4]} 16... Bg4 {[%clk
0:02:21.9]} 17. f3 {[%clk 0:02:28.8]} 17... Bf5 {[%clk 0:02:21.8]} 18. Kf2
{[%clk 0:02:20.3]} 18... Nf6 {[%clk 0:02:17.5]} 19. Nc5 {[%clk 0:01:44.8]} 19...
Bxc5 {[%clk 0:02:11.7]} 20. dxc5 {[%clk 0:01:45.7]} 20... Kf8 {[%clk 0:02:07.6]}
21. Rd6 {[%clk 0:01:40]} 21... Ne8 {[%clk 0:02:05.9]} 22. Rxd8 {[%clk
0:01:33.6]} 22... Rxd8 {[%clk 0:02:06.8]} 23. Bf4 {[%clk 0:01:24.8]} 23... f6
{[%clk 0:02:03.6]} 24. g4 {[%clk 0:01:24.1]} 24... Bg6 {[%clk 0:02:02.9]} 25.
Bf1 {[%clk 0:01:24.4]} 25... e5 {[%clk 0:02:01.9]} 26. Be3 {[%clk 0:01:21.8]}
26... Nc7 {[%clk 0:02:02.4]} 27. Be2 {[%clk 0:01:19.9]} 27... Ne6 {[%clk
0:02:01.9]} 28. Rd1 {[%clk 0:01:20.3]} 28... Bc2 {[%clk 0:01:56.1]} 29. Rxd8+
{[%clk 0:01:18.4]} 29... Nxd8 {[%clk 0:01:56.5]} 30. b4 {[%clk 0:01:19.1]} 30...
Ke7 {[%clk 0:01:52]} 31. f4 {[%clk 0:01:07.8]} 31... Ne6 {[%clk 0:01:47.6]} 32.
fxe5 {[%clk 0:01:01.9]} 32... fxe5 {[%clk 0:01:48.5]} 33. Bd2 {[%clk 0:00:56]}
33... g5 {[%clk 0:01:39.1]} 34. Bc3 {[%clk 0:00:55.8]} 34... Kf6 {[%clk
0:01:38.6]} 35. Ke3 {[%clk 0:00:55.2]} 35... Nf4 {[%clk 0:01:38.7]} 36. Bf3
{[%clk 0:00:51.2]} 36... Bd3 {[%clk 0:01:30.7]} 37. b3 {[%clk 0:00:45.9]} 37...
Ke6 {[%clk 0:01:22.2]} 38. Be4 {[%clk 0:00:42.5]} 38... Be2 {[%clk 0:01:20.4]}
39. Bf5+ {[%clk 0:00:37.6]} 39... Kf6 {[%clk 0:01:16.8]} 40. Be4 {[%clk
0:00:38.1]} 40... Bxg4 {[%clk 0:01:15.1]} 41. b5 {[%clk 0:00:37.7]} 41... Bd7
{[%clk 0:01:13.9]} 42. b6 {[%clk 0:00:33.2]} 42... Bc8 {[%clk 0:01:08.5]} 43. b4
{[%clk 0:00:33.1]} 43... Ne6 {[%clk 0:01:05.1]} 44. Bf3 {[%clk 0:00:25.4]} 44...
Ng7 {[%clk 0:01:01.6]} 45. b5 {[%clk 0:00:20.8]} 45... axb5 {[%clk 0:01:01.4]}
46. cxb5 {[%clk 0:00:21.7]} 46... cxb5 {[%clk 0:01:01.6]} 47. c6 {[%clk
0:00:22.2]} 47... bxc6 {[%clk 0:01:00.7]} 48. Bxc6 {[%clk 0:00:23.1]} 48... Nf5+
{[%clk 0:01:00.7]} 49. Ke4 {[%clk 0:00:20.5]} 49... Nd6+ {[%clk 0:01:00]} 50.
Kd5 {[%clk 0:00:21]} 50... Nc4 {[%clk 0:01:00.1]} 51. b7 {[%clk 0:00:19.3]}
51... Bxb7 {[%clk 0:00:57.4]} 52. Bxb7 {[%clk 0:00:20.2]} 52... Kf5 {[%clk
0:00:56.6]} 53. Ba6 {[%clk 0:00:19.6]} 53... Ne3+ {[%clk 0:00:52.8]} 54. Kc5
{[%clk 0:00:18.4]} 54... Ng4 {[%clk 0:00:49.3]} 55. h3 {[%clk 0:00:15.4]} 55...
Nf2 {[%clk 0:00:47.6]} 56. Bxb5 {[%clk 0:00:16]} 56... Kf4 {[%clk 0:00:43.6]}
57. Bd7 {[%clk 0:00:13.3]} 57... Ne4+ {[%clk 0:00:40.6]} 58. Kc4 {[%clk
0:00:13.2]} 58... h5 {[%clk 0:00:40.7]} 59. Be1 {[%clk 0:00:10.7]} 59... h4
{[%clk 0:00:34.9]} 60. Bg4 {[%clk 0:00:08.9]} 60... Nd6+ {[%clk 0:00:31]} 61.
Kd5 {[%clk 0:00:08.6]} 61... Nf5 {[%clk 0:00:30.3]} 62. Bd2+ {[%clk 0:00:09.1]}
62... Ne3+ {[%clk 0:00:29]} 63. Bxe3+ {[%clk 0:00:08.9]} 63... Kxe3 {[%clk
0:00:29.9]} 64. Kxe5 {[%clk 0:00:09.8]} 64... Kd3 {[%clk 0:00:30.2]} 65. Kf5
{[%clk 0:00:09.6]} 65... Kd4 {[%clk 0:00:30.7]} 66. Kxg5 {[%clk 0:00:10.4]}
66... Ke5 {[%clk 0:00:31.2]} 67. Kg6 {[%clk 0:00:06.8]} 67... Kd6 {[%clk
0:00:31.1]} 68. Bf5 {[%clk 0:00:05.8]} 68... Ke7 {[%clk 0:00:31]} 69. Kh5 {[%clk
0:00:06.7]} 69... Kf6 {[%clk 0:00:31]} 70. Be4 {[%clk 0:00:06.7]} 70... Kg7
{[%clk 0:00:31.1]} 71. Kxh4 {[%clk 0:00:07.6]} 71... Kh8 {[%clk 0:00:32]} 72.
Kg5 {[%clk 0:00:08.4]} 72... Kg8 {[%clk 0:00:32.5]} 73. h4 {[%clk 0:00:09.3]}
73... Kh8 {[%clk 0:00:33.4]} 74. h5 {[%clk 0:00:10.2]} 74... Kg8 {[%clk
0:00:34.3]} 75. h6 {[%clk 0:00:11.1]} 75... Kh8 {[%clk 0:00:35.2]} 76. Kh5
{[%clk 0:00:11.7]} 76... Kg8 {[%clk 0:00:36.1]} 77. h7+ {[%clk 0:00:12.3]} 77...
Kh8 {[%clk 0:00:37]} 78. Kg6 {[%clk 0:00:13.1]} 1/2-1/2

[Event "*** Titled Tuesday Blitz"]
[Site "Chess.com"]
[Date "2020.05.19"]
[Round "4"]
[White "DonBroca"]
[Black "XiaoKangZhong"]
[Result "1/2-1/2"]
[WhiteElo "2189"]
[BlackElo "2411"]
[TimeControl "180+1"]
[EndTime "12:41:55 PDT"]
[Termination "Game drawn by repetition"]

1. e4 {[%clk 0:03:00.9]} 1... c6 {[%clk 0:02:59.7]} 2. d4 {[%clk 0:02:59.9]}
2... d5 {[%clk 0:02:59.7]} 3. Nc3 {[%clk 0:03:00.4]} 3... dxe4 {[%clk
0:02:59.9]} 4. Nxe4 {[%clk 0:03:01.3]} 4... Nf6 {[%clk 0:03:00.3]} 5. Qd3 {[%clk
0:03:00.4]} 5... Qd5 {[%clk 0:02:48.5]} 6. Nxf6+ {[%clk 0:02:39]} 6... exf6
{[%clk 0:02:49.4]} 7. c4 {[%clk 0:02:38.3]} 7... Qe6+ {[%clk 0:02:35.1]} 8. Be2
{[%clk 0:02:37.9]} 8... Bd6 {[%clk 0:02:28.2]} 9. Nf3 {[%clk 0:02:37.8]} 9...
O-O {[%clk 0:02:28]} 10. O-O {[%clk 0:02:38.3]} 10... Nd7 {[%clk 0:02:26.5]} 11.
Bd2 {[%clk 0:02:38.3]} 11... c5 {[%clk 0:02:26]} 12. Bc3 {[%clk 0:02:37.9]}
12... b6 {[%clk 0:02:13.8]} 13. d5 {[%clk 0:02:27.9]} 13... Qe7 {[%clk
0:02:13.5]} 14. Rfe1 {[%clk 0:02:27.1]} 14... Re8 {[%clk 0:02:03.7]} 15. Bf1
{[%clk 0:02:11.1]} 15... Ne5 {[%clk 0:02:03.3]} 16. Nxe5 {[%clk 0:01:59.3]}
16... fxe5 {[%clk 0:02:04.2]} 17. g3 {[%clk 0:01:45.3]} 17... Bd7 {[%clk
0:01:54.1]} 18. Bg2 {[%clk 0:01:41.9]} 18... f5 {[%clk 0:01:52.5]} 19. f3 {[%clk
0:01:31.9]} 19... Qf7 {[%clk 0:01:49.9]} 20. Re2 {[%clk 0:01:29.4]} 20... Rab8
{[%clk 0:01:26.2]} 21. Rae1 {[%clk 0:01:25]} 21... b5 {[%clk 0:01:26.1]} 22. b3
{[%clk 0:01:15]} 22... bxc4 {[%clk 0:01:24.6]} 23. bxc4 {[%clk 0:01:15]} 23...
Qe7 {[%clk 0:01:10.6]} 24. Kh1 {[%clk 0:01:12.4]} 24... Qf6 {[%clk 0:00:31.6]}
25. Qc2 {[%clk 0:00:50.1]} 25... f4 {[%clk 0:00:30.7]} 26. Qc1 {[%clk
0:00:20.8]} 26... Qh6 {[%clk 0:00:27.8]} 27. gxf4 {[%clk 0:00:17.6]} 27... exf4
{[%clk 0:00:28.7]} 28. Rxe8+ {[%clk 0:00:16.8]} 28... Rxe8 {[%clk 0:00:29.6]}
29. Rxe8+ {[%clk 0:00:15.8]} 29... Bxe8 {[%clk 0:00:30.5]} 30. Qe1 {[%clk
0:00:13.8]} 30... Bd7 {[%clk 0:00:30.7]} 31. Be5 {[%clk 0:00:11.9]} 31... Kf7
{[%clk 0:00:25.5]} 32. Bxd6 {[%clk 0:00:11.3]} 32... Qxd6 {[%clk 0:00:26.1]} 33.
Qe4 {[%clk 0:00:11.3]} 33... Qf6 {[%clk 0:00:26]} 34. Bf1 {[%clk 0:00:09.6]}
34... h6 {[%clk 0:00:24.6]} 35. Bd3 {[%clk 0:00:09.5]} 35... Bh3 {[%clk
0:00:23.5]} 36. Kg1 {[%clk 0:00:09.1]} 36... Qg5+ {[%clk 0:00:14.2]} 37. Kf2
{[%clk 0:00:09.5]} 37... Qg2+ {[%clk 0:00:14.6]} 38. Ke1 {[%clk 0:00:10]} 38...
Qg1+ {[%clk 0:00:14.6]} 39. Kd2 {[%clk 0:00:09.8]} 39... Qxh2+ {[%clk
0:00:13.5]} 40. Kc1 {[%clk 0:00:09.1]} 40... Qg1+ {[%clk 0:00:12.9]} 41. Kb2
{[%clk 0:00:07.4]} 41... Qd4+ {[%clk 0:00:11.4]} 42. Qxd4 {[%clk 0:00:07.8]}
42... cxd4 {[%clk 0:00:12.3]} 43. c5 {[%clk 0:00:07.7]} 43... Ke7 {[%clk
0:00:11.8]} 44. Kb3 {[%clk 0:00:06.7]} 44... Bg2 {[%clk 0:00:11]} 45. Be4 {[%clk
0:00:05.3]} 45... Bf1 {[%clk 0:00:11.2]} 46. Kc2 {[%clk 0:00:04.1]} 46... Kd7
{[%clk 0:00:10.3]} 47. Bd3 {[%clk 0:00:04.5]} 47... Bg2 {[%clk 0:00:06.9]} 48.
Be2 {[%clk 0:00:04.9]} 48... g5 {[%clk 0:00:04.7]} 49. Kd3 {[%clk 0:00:05.3]}
49... h5 {[%clk 0:00:05.6]} 50. Kxd4 {[%clk 0:00:05.2]} 50... Bh3 {[%clk
0:00:06.5]} 51. Ke5 {[%clk 0:00:03.9]} 51... Ke7 {[%clk 0:00:07.1]} 52. d6+
{[%clk 0:00:03.7]} 52... Kf7 {[%clk 0:00:07.6]} 53. c6 {[%clk 0:00:02.3]} 53...
g4 {[%clk 0:00:06.6]} 54. c7 {[%clk 0:00:03.2]} 54... g3 {[%clk 0:00:06.4]} 55.
Bc4+ {[%clk 0:00:02.4]} 55... Kg7 {[%clk 0:00:05.9]} 56. Be6 {[%clk 0:00:02.6]}
56... Bxe6 {[%clk 0:00:03.9]} 57. Kxe6 {[%clk 0:00:03.5]} 57... g2 {[%clk
0:00:04.5]} 58. c8=Q {[%clk 0:00:04.2]} 58... g1=Q {[%clk 0:00:05.4]} 59. Qd7+
{[%clk 0:00:04.5]} 59... Kh6 {[%clk 0:00:05.4]} 60. Qf7 {[%clk 0:00:05.4]} 60...
Qe1+ {[%clk 0:00:04.4]} 61. Kd7 {[%clk 0:00:05.1]} 61... Qa5 {[%clk 0:00:04.3]}
62. Qe6+ {[%clk 0:00:05.3]} 62... Kh7 {[%clk 0:00:04.6]} 63. Ke7 {[%clk
0:00:06.2]} 63... Qc5 {[%clk 0:00:04.2]} 64. Qf7+ {[%clk 0:00:06.3]} 64... Kh6
{[%clk 0:00:04.6]} 65. Qf6+ {[%clk 0:00:06.7]} 65... Kh7 {[%clk 0:00:05.2]} 66.
Qe6 {[%clk 0:00:07.1]} 66... h4 {[%clk 0:00:04.8]} 67. Qf7+ {[%clk 0:00:08]}
67... Kh6 {[%clk 0:00:05.1]} 68. Qf6+ {[%clk 0:00:08.9]} 68... Kh5 {[%clk
0:00:05.5]} 69. Qf7+ {[%clk 0:00:09.2]} 69... Kh6 {[%clk 0:00:05.4]} 70. Qf6+
{[%clk 0:00:09.5]} 70... Kh5 {[%clk 0:00:06]} 71. Qh8+ {[%clk 0:00:09.6]} 71...
Kg5 {[%clk 0:00:06.2]} 72. Qg7+ {[%clk 0:00:10.2]} 72... Kh5 {[%clk 0:00:06.8]}
73. Qh7+ {[%clk 0:00:10.3]} 73... Kg5 {[%clk 0:00:07.5]} 74. Qg8+ {[%clk
0:00:09.4]} 74... Kh5 {[%clk 0:00:07.9]} 75. Qe6 {[%clk 0:00:09.8]} 75... Qg5+
{[%clk 0:00:06.8]} 76. Qf6 {[%clk 0:00:09]} 76... Qc5 {[%clk 0:00:07.7]} 1/2-1/2